[Event "16th Spilimbergo Open 2018"]
[Site "Spilimbergo"]
[Date "2018.08.11"]
[Round "2.5"]
[White "Santagati, Alessandro"]
[Black "Bosiocic, Marin"]
[Result "1/2-1/2"]
[ECO "B07"]
[WhiteElo "2312"]
[BlackElo "2590"]
[Annotator "RC"]
[PlyCount "99"]
[EventDate "2018.08.10"]
[EventType "swiss"]
[EventCountry "ITA"]
[SourceTitle "playchess.com"]
[Source "ChessBase"]
[SourceQuality "1"]
[TimeControl "5400+30"]

1. e4 {[%emt 0:00:30]} d6 {[%emt 0:00:30]} 2. d4 {[%emt 0:00:00]} Nf6 {[%emt 0:00:00]} 3. Nc3 {[%emt 0:00:00]} g6 {[%emt 0:00:00]} 4. Bg5 {[%emt 0:00:30]} c6 {[%emt 0:00:30]} 5. Qd2 {[%emt 0:01:30]} Nbd7 {[%emt 0:00:30]} 6. f4 {[%emt 0:03:30]} d5 {[%emt 0:03:30]} 7. Bxf6 {[%emt 0:05:30]} Nxf6 {[%emt 0:00:30]} 8. e5 {[%emt 0:00:00]} Nh5 {[%emt 0:03:30]} 9. O-O-O {[%emt 0:06:00]} Bh6 {[%emt 0:03:30]} 10. g3 {[%emt 0:01:30]} Ng7 {[%emt 0:00:30]} 11. Kb1 {[%emt 0:13:30]} Qa5 {[%emt 0:04:30]} 12. h3 {[%emt 0:11:30]} b5 {[%emt 0:04:30]} 13. Qf2 {[%emt 0:05:30]} Ne6 {[%emt 0:07:30]} 14. h4 {[%emt 0:05:30]} Nc7 {[%emt 0:03:30]} 15. Bh3 {[%emt 0:02:30]} e6 {[%emt 0:02:30]} 16. Nce2 {[%emt 0:02:30]} b4 {[%emt 0:00:30]} 17. Nc1 {[%emt 0:00:30]} Bf8 {[%emt 0:00:30]} 18. g4 {[%emt 0:02:30]} Nb5 {[%emt 0:00:30]} 19. Nge2 {[%emt 0:07:30]} Qb6 {[%emt 0:00:30]} 20. f5 {[%emt 0:02:30]} a5 {[%emt 0:00:30]} 21. fxe6 {[%emt 0:02:30]} Bxe6 {[%emt 0:00:30]} 22. g5 {[%emt 0:04:30]} Be7 {[%emt 0:01:30]} 23. Bxe6 {[%emt 0:02:11]} fxe6 {[%emt 0:00:00]} 24. h5 {[%emt 0:02:24]} Rf8 {[%emt 0:01:00]} 25. Qg3 {[%emt 0:01:05]} a4 {[%emt 0:01:30]} 26. hxg6 {[%emt 0:01:18]} hxg6 {[%emt 0:01:30]} 27. Rd3 {[%emt 0:03:27]} a3 {[%emt 0:05:30]} 28. b3 {[%emt 0:02:18]} c5 {[%emt 0:00:30]} 29. Rf3 {[%emt 0:01:58]} cxd4 {[%emt 0:01:30]} 30. Rxf8+ {[%emt 0:02:00]} Bxf8 {[%emt 0:00:30]} 31. Qd3 {[%emt 0:00:51]} O-O-O {[%emt 0:00:00]} 32. Qxg6 {[%emt 0:00:29]} Kb8 {[%emt 0:00:00]} 33. Rh8 {[%emt 0:01:49]} Rc8 {[%emt 0:05:30]} 34. Qd3 {[%emt 0:00:45]} Qc5 {[%emt 0:01:30]} 35. g6 {[%emt 0:01:00]} Bg7 {[%emt 0:00:30]} 36. Rxc8+ {[%emt 0:00:32]} Kxc8 {[%emt 0:00:30]} 37. Qh3 {[%emt 0:00:35]} Kd7 {[%emt 0:00:30]} 38. Nd3 {[%emt 0:00:53]} Qe7 {[%emt 0:00:30]} 39. Nef4 {[%emt 0:01:20]} Nc3+ {[%emt 0:00:30]} 40. Ka1 {[%emt 0:00:13]} Ne4 {[%emt 0:00:30]} 41. Qg4 {[%emt 0:01:24]} Qe8 {[%emt 0:19:30]} 42. Nxd5 {[%emt 0:01:02]} Qf8 {[%emt 0:04:30]} 43. Qxe4 {[%emt 0:01:32]} Qf1+ {[%emt 0:00:30]} 44. Ne1 {[%emt 0:00:23]} exd5 {[%emt 0:00:30]} 45. Qxd5+ {[%emt 0:00:14]} Ke7 {[%emt 0:01:30]} 46. Qd6+ {[%emt 0:01:10]} Ke8 {[%emt 0:00:30]} 47. Qb8+ {[%emt 0:00:40]} Kd7 {[%emt 0:00:30]} 48. Qd6+ {[%emt 0:00:09]} Ke8 {[%emt 0:00:00]} 49. Qb8+ {[%emt 0:00:35]} Kd7 {[%emt 0:00:00]} 50. Qd6+ {[%emt 0:00:44]} 1/2-1/2

[Event "16th Spilimbergo Open 2018"]
[Site "Spilimbergo"]
[Date "2018.08.11"]
[Round "2.9"]
[White "Vezzosi, Paolo"]
[Black "Krysa, Leandro"]
[Result "1/2-1/2"]
[ECO "C96"]
[WhiteElo "2301"]
[BlackElo "2523"]
[Annotator "ChessBase"]
[PlyCount "100"]
[EventDate "2018.08.10"]
[EventType "swiss"]
[EventCountry "ITA"]
[SourceTitle "playchess.com"]
[Source "ChessBase"]
[SourceQuality "1"]
[TimeControl "5400+30"]

1. e4 {[%emt 0:00:30]} e5 {[%emt 0:01:30]} 2. Nf3 {[%emt 0:00:00]} Nc6 {[%emt 0:00:30]} 3. Bb5 {[%emt 0:00:00]} a6 {[%emt 0:00:30]} 4. Ba4 {[%emt 0:00:30]} Nf6 {[%emt 0:00:30]} 5. O-O {[%emt 0:00:30]} Be7 {[%emt 0:01:30]} 6. Re1 {[%emt 0:00:30]} b5 {[%emt 0:00:30]} 7. Bb3 {[%emt 0:00:30]} d6 {[%emt 0:00:00]} 8. c3 {[%emt 0:00:00]} O-O {[%emt 0:00:00]} 9. h3 {[%emt 0:00:00]} Na5 {[%emt 0:00:30]} 10. Bc2 {[%emt 0:00:30]} c5 {[%emt 0:00:30]} 11. d4 {[%emt 0:00:30]} Nd7 {[%emt 0:00:00]} 12. dxc5 {[%emt 0:01:30]} dxc5 {[%emt 0:00:00]} 13. Nbd2 {[%emt 0:00:30]} Bb7 {[%emt 0:03:30]} 14. Nf1 {[%emt 0:01:30]} Nc4 {[%emt 0:00:30]} 15. Ng3 {[%emt 0:02:30]} Nd6 {[%emt 0:01:30]} 16. Nh2 {[%emt 0:15:30]} Re8 {[%emt 0:05:30]} 17. Ng4 {[%emt 0:02:30]} Bf8 {[%emt 0:04:30]} 18. b3 {[%emt 0:11:30]} Qh4 {[%emt 0:08:30]} 19. Be3 {[%emt 0:03:30]} Rad8 {[%emt 0:15:30]} 20. Qc1 {[%emt 0:02:30]} Qe7 {[%emt 0:01:30]} 21. a4 {[%emt 0:00:30]} f6 {[%emt 0:03:30]} 22. axb5 {[%emt 0:09:30]} axb5 {[%emt 0:02:30]} 23. h4 {[%emt 0:03:30]} Ra8 {[%emt 0:04:30]} 24. Qd2 {[%emt 0:01:30]} Rxa1 {[%emt 0:13:30]} 25. Rxa1 {[%emt 0:00:00]} Ra8 {[%emt 0:00:30]} 26. Rxa8 {[%emt 0:00:00]} Bxa8 {[%emt 0:00:30]} 27. f3 {[%emt 0:00:30]} Bc6 {[%emt 0:05:30]} 28. Qd1 {[%emt 0:08:30]} Qd8 {[%emt 0:03:30]} 29. Qa1 {[%emt 0:00:30]} Qa8 {[%emt 0:00:30]} 30. Qxa8 {[%emt 0:00:30]} Bxa8 {[%emt 0:00:30]} 31. Nf5 {[%emt 0:09:30]} Ne8 {[%emt 0:07:45]} 32. h5 {[%emt 0:03:30]} Kf7 {[%emt 0:02:05]} 33. Bd3 {[%emt 0:11:37]} Bc6 {[%emt 0:02:30]} 34. c4 {[%emt 0:00:29]} b4 {[%emt 0:00:27]} 35. Bf2 {[%emt 0:01:57]} Nc7 {[%emt 0:01:09]} 36. Nfe3 {[%emt 0:02:22]} Ne6 {[%emt 0:01:04]} 37. Nd5 {[%emt 0:02:50]} Nf4 {[%emt 0:06:58]} 38. Nxf4 {[%emt 0:01:10]} exf4 {[%emt 0:00:02]} 39. e5 {[%emt 0:01:01]} Nxe5 {[%emt 0:02:40]} 40. Nxe5+ {[%emt 0:00:07]} fxe5 {[%emt 0:00:03]} 41. Bxh7 {[%emt 0:00:06]} Ke6 {[%emt 0:00:58]} 42. Bg6 {[%emt 0:01:18]} e4 {[%emt 0:01:02]} 43. fxe4 {[%emt 0:00:05]} Ke5 {[%emt 0:00:09]} 44. Kf1 {[%emt 0:00:53]} Bxe4 {[%emt 0:00:59]} 45. Bxe4 {[%emt 0:00:07]} Kxe4 {[%emt 0:00:23]} 46. Ke2 {[%emt 0:00:02]} Be7 {[%emt 0:01:05]} 47. Bg1 {[%emt 0:00:15]} Bd6 {[%emt 0:00:26]} 48. Bf2 {[%emt 0:00:55]} Be7 {[%emt 0:00:43]} 49. Bg1 {[%emt 0:00:22]} Bd6 {[%emt 0:00:22]} 50. Bf2 {[%emt 0:00:04]} Be7 {[%emt 0:01:00]} 1/2-1/2

[Event "16th Spilimbergo Open 2018"]
[Site "Spilimbergo"]
[Date "2018.08.11"]
[Round "2.13"]
[White "Di Benedetto, Desiree"]
[Black "Lodici, Lorenzo"]
[Result "1/2-1/2"]
[ECO "D02"]
[WhiteElo "2295"]
[BlackElo "2447"]
[Annotator "NA"]
[PlyCount "115"]
[EventDate "2018.08.10"]
[EventType "swiss"]
[EventCountry "ITA"]
[SourceTitle "playchess.com"]
[Source "ChessBase"]
[SourceQuality "1"]
[TimeControl "5400+30"]

1. d4 {[%emt 0:00:30]} d5 {[%emt 0:00:30]} 2. Bf4 {[%emt 0:00:30]} Nf6 {[%emt 0:00:30]} 3. e3 {[%emt 0:00:30]} c5 {[%emt 0:01:30]} 4. c3 {[%emt 0:00:00]} Nc6 {[%emt 0:00:00]} 5. Nd2 {[%emt 0:00:00]} e6 {[%emt 0:00:00]} 6. Ngf3 {[%emt 0:00:30]} cxd4 {[%emt 0:00:30]} 7. exd4 {[%emt 0:01:30]} Nh5 {[%emt 0:00:30]} 8. Bg5 {[%emt 0:10:30]} f6 {[%emt 0:00:00]} 9. Be3 {[%emt 0:02:30]} Bd6 {[%emt 0:00:00]} 10. g3 {[%emt 0:03:30]} O-O {[%emt 0:00:30]} 11. Be2 {[%emt 0:06:30]} f5 {[%emt 0:08:30]} 12. Nb3 {[%emt 0:22:30]} Nf6 {[%emt 0:11:30]} 13. Bf4 {[%emt 0:13:30]} Bxf4 {[%emt 0:09:30]} 14. gxf4 {[%emt 0:00:00]} Ne4 {[%emt 0:01:30]} 15. Qc1 {[%emt 0:06:00]} Bd7 {[%emt 0:10:30]} 16. Qe3 {[%emt 0:01:30]} Be8 {[%emt 0:06:30]} 17. O-O {[%emt 0:05:30]} Bh5 {[%emt 0:03:30]} 18. Ne5 {[%emt 0:00:30]} Nxe5 {[%emt 0:02:30]} 19. dxe5 {[%emt 0:00:30]} Bxe2 {[%emt 0:00:00]} 20. Qxe2 {[%emt 0:00:30]} Qe7 {[%emt 0:02:00]} 21. Nd4 {[%emt 0:04:39]} a6 {[%emt 0:03:30]} 22. a4 {[%emt 0:00:50]} Rac8 {[%emt 0:02:30]} 23. f3 {[%emt 0:01:52]} Nc5 {[%emt 0:00:30]} 24. Qe3 {[%emt 0:00:52]} Kh8 {[%emt 0:02:30]} 25. Kh1 {[%emt 0:00:19]} Nd7 {[%emt 0:02:30]} 26. Rg1 {[%emt 0:01:54]} Rc4 {[%emt 0:01:30]} 27. Rg2 {[%emt 0:02:15]} Rfc8 {[%emt 0:03:30]} 28. Rag1 {[%emt 0:04:01]} g6 {[%emt 0:00:30]} 29. Ra1 {[%emt 0:04:28]} Nc5 {[%emt 0:03:30]} 30. a5 {[%emt 0:01:51]} Nd7 {[%emt 0:00:30]} 31. Qf2 {[%emt 0:00:45]} Nf8 {[%emt 0:02:30]} 32. h4 {[%emt 0:00:43]} h5 {[%emt 0:01:30]} 33. Rg5 {[%emt 0:01:01]} Kh7 {[%emt 0:00:30]} 34. Qg3 {[%emt 0:01:27]} Re8 {[%emt 0:00:30]} 35. Rg1 {[%emt 0:00:51]} Qf7 {[%emt 0:00:30]} 36. Ra1 {[%emt 0:00:59]} Re7 {[%emt 0:01:30]} 37. Qe1 {[%emt 0:00:41]} Qe8 {[%emt 0:00:30]} 38. b4 {[%emt 0:01:12]} Rec7 {[%emt 0:00:30]} 39. Ne2 {[%emt 0:01:08]} d4 {[%emt 0:08:00]} 40. cxd4 {[%emt 0:00:17]} Rc2 {[%emt 0:00:08]} 41. Rg2 {[%emt 0:00:46]} Qc6 {[%emt 0:02:11]} 42. Rf2 {[%emt 0:00:14]} Qc4 {[%emt 0:00:50]} 43. Kg2 {[%emt 0:00:18]} Nd7 {[%emt 0:00:30]} 44. Kg3 {[%emt 0:00:44]} Nb8 {[%emt 0:00:42]} 45. Rb1 {[%emt 0:00:29]} Nc6 {[%emt 0:00:22]} 46. d5 {[%emt 0:00:50]} exd5 {[%emt 0:01:31]} 47. Ng1 {[%emt 0:00:25]} Rxf2 {[%emt 0:01:10]} 48. Qxf2 {[%emt 0:00:01]} Nxb4 {[%emt 0:01:52]} 49. Qb6 {[%emt 0:00:14]} Nd3 {[%emt 0:00:30]} 50. Nh3 {[%emt 0:00:08]} Qc6 {[%emt 0:00:33]} 51. Ng5+ {[%emt 0:00:21]} Kh6 {[%emt 0:00:55]} 52. Qxc6 {[%emt 0:01:46]} bxc6 {[%emt 0:00:15]} 53. Rb8 {[%emt 0:00:10]} Re7 {[%emt 0:01:18]} 54. Rh8+ {[%emt 0:00:50]} Kg7 {[%emt 0:00:02]} 55. Rh7+ {[%emt 0:00:21]} Kf8 {[%emt 0:00:04]} 56. Rh8+ {[%emt 0:00:07]} Kg7 {[%emt 0:00:03]} 57. Rh7+ {[%emt 0:01:03]} Kf8 {[%emt 0:00:04]} 58. Rh8+ {[%emt 0:00:13]} 1/2-1/2

[Event "16th Spilimbergo Open 2018"]
[Site "Spilimbergo"]
[Date "2018.08.11"]
[Round "2.14"]
[White "Di Benedetto, Edoardo"]
[Black "Altini, Nicola"]
[Result "0-1"]
[ECO "B31"]
[WhiteElo "2294"]
[BlackElo "2425"]
[Annotator "NA"]
[PlyCount "50"]
[EventDate "2018.08.10"]
[EventType "swiss"]
[EventCountry "ITA"]
[SourceTitle "playchess.com"]
[Source "ChessBase"]
[SourceQuality "1"]
[TimeControl "5400+30"]

1. e4 {[%emt 0:00:30]} c5 {[%emt 0:00:30]} 2. Nf3 {[%emt 0:00:00]} Nc6 {[%emt 0:00:00]} 3. Bb5 {[%emt 0:00:00]} g6 {[%emt 0:00:00]} 4. c3 {[%emt 0:00:30]} Bg7 {[%emt 0:02:30]} 5. d4 {[%emt 0:02:30]} Qb6 {[%emt 0:09:30]} 6. Bxc6 {[%emt 0:02:30]} bxc6 {[%emt 0:04:30]} 7. O-O {[%emt 0:02:30]} Nh6 {[%emt 0:02:30]} 8. dxc5 {[%emt 0:00:30]} Qxc5 {[%emt 0:00:30]} 9. Be3 {[%emt 0:00:30]} Qh5 {[%emt 0:02:30]} 10. Bd4 {[%emt 0:01:30]} f6 {[%emt 0:04:30]} 11. Qb3 {[%emt 0:00:30]} a5 {[%emt 0:16:30]} 12. a4 {[%emt 0:09:30]} Nf7 {[%emt 0:00:00]} 13. Nbd2 {[%emt 0:01:30]} O-O {[%emt 0:02:00]} 14. Qa3 {[%emt 0:00:30]} d6 {[%emt 0:04:30]} 15. b4 {[%emt 0:00:30]} e5 {[%emt 0:06:30]} 16. Bb6 {[%emt 0:00:30]} f5 {[%emt 0:04:30]} 17. b5 {[%emt 0:36:30]} c5 {[%emt 0:17:34]} 18. c4 {[%emt 0:05:30]} Bb7 {[%emt 0:00:26]} 19. Qd3 {[%emt 0:00:30]} Bh6 {[%emt 0:00:30]} 20. Rad1 {[%emt 0:08:30]} Bf4 {[%emt 0:00:30]} 21. g3 {[%emt 0:04:30]} Bh6 {[%emt 0:02:13]} 22. Bc7 {[%emt 0:05:59]} Qh3 {[%emt 0:02:36]} 23. Rfe1 {[%emt 0:02:53]} Bxd2 {[%emt 0:03:36]} 24. Nxd2 {[%emt 0:00:25]} fxe4 {[%emt 0:00:35]} 25. Qe3 {[%emt 0:01:45]} Nh6 {[%emt 0:01:01]} 0-1

[Event "16th Spilimbergo Open 2018"]
[Site "Spilimbergo"]
[Date "2018.08.11"]
[Round "2.15"]
[White "Aghayev, Miragha"]
[Black "Micottis, Dorian"]
[Result "1-0"]
[ECO "D72"]
[WhiteElo "2424"]
[BlackElo "2295"]
[Annotator "NA RC"]
[PlyCount "113"]
[EventDate "2018.08.10"]
[EventType "swiss"]
[EventCountry "ITA"]
[SourceTitle "playchess.com"]
[Source "ChessBase"]
[SourceQuality "1"]
[TimeControl "5400+30"]

1. d4 {[%emt 0:23:30]} Nf6 {[%emt 0:00:30]} 2. c4 {[%emt 0:00:30]} g6 {[%emt 0:00:00]} 3. g3 {[%emt 0:00:30]} Bg7 {[%emt 0:02:00]} 4. Bg2 {[%emt 0:02:30]} d5 {[%emt 0:00:00]} 5. cxd5 {[%emt 0:00:00]} Nxd5 {[%emt 0:00:00]} 6. e4 {[%emt 0:00:00]} Nb6 {[%emt 0:00:00]} 7. Ne2 {[%emt 0:00:00]} e5 {[%emt 0:08:00]} 8. d5 {[%emt 0:02:00]} c6 {[%emt 0:00:30]} 9. O-O {[%emt 0:01:30]} O-O {[%emt 0:00:30]} 10. Nbc3 {[%emt 0:00:30]} cxd5 {[%emt 0:06:30]} 11. exd5 {[%emt 0:04:30]} Nc4 {[%emt 0:13:30]} 12. b3 {[%emt 0:01:30]} Nd6 {[%emt 0:00:30]} 13. Ba3 {[%emt 0:00:30]} Re8 {[%emt 0:00:30]} 14. Rc1 {[%emt 0:03:30]} Na6 {[%emt 0:00:30]} 15. h3 {[%emt 0:03:30]} Rb8 {[%emt 0:13:30]} 16. Qd2 {[%emt 0:05:30]} b5 {[%emt 0:06:30]} 17. Bxd6 {[%emt 0:11:30]} Qxd6 {[%emt 0:01:30]} 18. Ne4 {[%emt 0:00:00]} Qd7 {[%emt 0:00:30]} 19. Rc6 {[%emt 0:02:00]} Bb7 {[%emt 0:11:30]} 20. Rd6 {[%emt 0:09:30]} Qe7 {[%emt 0:01:30]} 21. Rd1 {[%emt 0:15:26]} Nc5 {[%emt 0:04:30]} 22. N2c3 {[%emt 0:10:12]} b4 {[%emt 0:10:13]} 23. Qe3 {[%emt 0:00:21]} bxc3 {[%emt 0:08:27]} 24. Qxc5 {[%emt 0:00:08]} Rbc8 {[%emt 0:00:51]} 25. Qe3 {[%emt 0:01:00]} c2 {[%emt 0:01:32]} 26. Rc1 {[%emt 0:00:19]} Red8 {[%emt 0:06:18]} 27. Rxd8+ {[%emt 0:01:50]} Qxd8 {[%emt 0:00:03]} 28. Nc5 {[%emt 0:00:57]} Bxd5 {[%emt 0:00:56]} 29. Rxc2 {[%emt 0:00:07]} Bxg2 {[%emt 0:01:07]} 30. Kxg2 {[%emt 0:00:04]} Qd5+ {[%emt 0:00:27]} 31. Kh2 {[%emt 0:00:05]} Qd4 {[%emt 0:00:49]} 32. Qxd4 {[%emt 0:01:50]} exd4 {[%emt 0:00:09]} 33. Rc4 {[%emt 0:00:26]} Bf8 {[%emt 0:01:05]} 34. Nd3 {[%emt 0:00:00]} Rxc4 {[%emt 0:00:00]} 35. bxc4 {[%emt 0:00:00]} f5 {[%emt 0:00:02]} 36. Kg2 {[%emt 0:00:04]} Kf7 {[%emt 0:00:42]} 37. Kf3 {[%emt 0:00:30]} Ke6 {[%emt 0:00:33]} 38. Ke2 {[%emt 0:00:30]} Kd6 {[%emt 0:00:09]} 39. Kd2 {[%emt 0:00:10]} Bg7 {[%emt 0:01:26]} 40. Kc2 {[%emt 0:00:14]} Kc6 {[%emt 0:00:33]} 41. h4 {[%emt 0:00:42]} Bf6 {[%emt 0:00:39]} 42. Nf4 {[%emt 0:01:25]} Kc5 {[%emt 0:01:42]} 43. Kd3 {[%emt 0:00:07]} Be7 {[%emt 0:00:36]} 44. Ne6+ {[%emt 0:00:49]} Kb4 {[%emt 0:00:04]} 45. Kxd4 {[%emt 0:00:20]} Ka3 {[%emt 0:00:34]} 46. c5 {[%emt 0:00:09]} Kxa2 {[%emt 0:00:06]} 47. c6 {[%emt 0:00:14]} Bd6 {[%emt 0:00:02]} 48. Kd5 {[%emt 0:00:34]} Bb8 {[%emt 0:00:12]} 49. Nc5 {[%emt 0:00:18]} f4 {[%emt 0:00:23]} 50. g4 {[%emt 0:01:02]} f3 {[%emt 0:00:20]} 51. Na6 {[%emt 0:00:52]} Bh2 {[%emt 0:00:52]} 52. Ke4 {[%emt 0:00:05]} Kb3 {[%emt 0:00:19]} 53. Kxf3 {[%emt 0:00:29]} Kc4 {[%emt 0:00:05]} 54. Ke4 {[%emt 0:00:07]} Kb5 {[%emt 0:00:10]} 55. c7 {[%emt 0:00:07]} Bxc7 {[%emt 0:00:05]} 56. Nxc7+ {[%emt 0:00:02]} Kb4 {[%emt 0:00:00]} 57. Nd5+ {[%emt 0:00:06]} 1-0

[Event "16th Spilimbergo Open 2018"]
[Site "Spilimbergo"]
[Date "2018.08.11"]
[Round "2.16"]
[White "Dappiano, Andrea"]
[Black "Mesaros, Florian"]
[Result "1/2-1/2"]
[ECO "C47"]
[WhiteElo "2285"]
[BlackElo "2422"]
[Annotator "NA RC"]
[PlyCount "78"]
[EventDate "2018.08.10"]
[EventType "swiss"]
[EventCountry "ITA"]
[SourceTitle "playchess.com"]
[Source "ChessBase"]
[SourceQuality "1"]
[TimeControl "5400+30"]

1. e4 {[%emt 0:00:30]} e5 {[%emt 0:00:30]} 2. Nf3 {[%emt 0:00:00]} Nc6 {[%emt 0:00:00]} 3. d4 {[%emt 0:00:00]} exd4 {[%emt 0:00:00]} 4. Nxd4 {[%emt 0:00:30]} Nf6 {[%emt 0:00:00]} 5. Nc3 {[%emt 0:00:30]} Bb4 {[%emt 0:00:00]} 6. Nxc6 {[%emt 0:00:30]} bxc6 {[%emt 0:00:30]} 7. Bd3 {[%emt 0:00:30]} d5 {[%emt 0:00:30]} 8. exd5 {[%emt 0:00:00]} cxd5 {[%emt 0:00:00]} 9. O-O {[%emt 0:00:00]} O-O {[%emt 0:00:00]} 10. h3 {[%emt 0:02:30]} Re8 {[%emt 0:01:30]} 11. Qf3 {[%emt 0:01:30]} c6 {[%emt 0:01:30]} 12. Bf4 {[%emt 0:02:30]} Qe7 {[%emt 0:01:30]} 13. Rad1 {[%emt 0:17:30]} Bd7 {[%emt 0:17:30]} 14. Ne2 {[%emt 0:14:30]} Ne4 {[%emt 0:08:30]} 15. Ng3 {[%emt 0:19:30]} f5 {[%emt 0:09:30]} 16. a3 {[%emt 0:04:30]} Bc5 {[%emt 0:05:30]} 17. Be3 {[%emt 0:07:30]} Bxe3 {[%emt 0:18:30]} 18. Qxe3 {[%emt 0:01:30]} Qf6 {[%emt 0:10:30]} 19. Bxe4 {[%emt 0:04:30]} fxe4 {[%emt 0:01:30]} 20. Qd4 {[%emt 0:00:30]} Re5 {[%emt 0:00:30]} 21. f4 {[%emt 0:01:45]} exf3 {[%emt 0:04:31]} 22. Rxf3 {[%emt 0:00:15]} Re1+ {[%emt 0:00:45]} 23. Rf1 {[%emt 0:00:53]} Rxf1+ {[%emt 0:00:38]} 24. Nxf1 {[%emt 0:00:07]} Qg6 {[%emt 0:00:26]} 25. Rd3 {[%emt 0:03:13]} Rf8 {[%emt 0:00:12]} 26. Qxa7 {[%emt 0:03:26]} Bf5 {[%emt 0:02:08]} 27. Rf3 {[%emt 0:04:12]} Bxc2 {[%emt 0:04:00]} 28. Rxf8+ {[%emt 0:00:32]} Kxf8 {[%emt 0:00:01]} 29. Ne3 {[%emt 0:01:20]} Be4 {[%emt 0:01:08]} 30. Qb8+ {[%emt 0:02:20]} Qe8 {[%emt 0:02:14]} 31. Qd6+ {[%emt 0:00:09]} Kg8 {[%emt 0:01:04]} 32. a4 {[%emt 0:00:48]} Qa8 {[%emt 0:04:30]} 33. Qe6+ {[%emt 0:04:09]} Kf8 {[%emt 0:00:02]} 34. Ng4 {[%emt 0:00:59]} Qxa4 {[%emt 0:05:09]} 35. Ne5 {[%emt 0:00:55]} Qa7+ {[%emt 0:00:04]} 36. Kh2 {[%emt 0:01:10]} Qc7 {[%emt 0:01:07]} 37. Kg1 {[%emt 0:00:31]} Qa7+ {[%emt 0:00:22]} 38. Kh2 {[%emt 0:00:16]} Qc7 {[%emt 0:00:08]} 39. Kg1 {[%emt 0:00:33]} Qa7+ {[%emt 0:02:40]} 1/2-1/2

[Event "16th Spilimbergo Open 2018"]
[Site "Spilimbergo"]
[Date "2018.08.11"]
[Round "3.6"]
[White "Skoberne, Jure"]
[Black "Aghayev, Miragha"]
[Result "1/2-1/2"]
[ECO "D02"]
[WhiteElo "2575"]
[BlackElo "2424"]
[Annotator "RC"]
[PlyCount "21"]
[EventDate "2018.08.10"]
[EventType "swiss"]
[EventCountry "ITA"]
[SourceTitle "playchess.com"]
[Source "ChessBase"]
[SourceQuality "1"]
[TimeControl "5400+30"]

1. d4 {[%emt 0:00:30]} Nf6 {[%emt 0:01:30]} 2. Nf3 {[%emt 0:00:00]} e6 {[%emt 0:00:30]} 3. Bf4 {[%emt 0:01:00]} c5 {[%emt 0:00:30]} 4. e3 {[%emt 0:01:30]} d5 {[%emt 0:05:30]} 5. c3 {[%emt 0:01:30]} Bd6 {[%emt 0:00:30]} 6. Bg3 {[%emt 0:07:30]} Qc7 {[%emt 0:01:30]} 7. Nbd2 {[%emt 0:02:30]} Nbd7 {[%emt 0:00:30]} 8. Bd3 {[%emt 0:02:30]} O-O {[%emt 0:00:30]} 9. Bxd6 {[%emt 0:00:30]} Qxd6 {[%emt 0:00:30]} 10. O-O {[%emt 0:00:30]} e5 {[%emt 0:00:00]} 11. dxe5 {[%emt 0:02:30]} 1/2-1/2

[Event "16th Spilimbergo Open 2018"]
[Site "Spilimbergo"]
[Date "2018.08.11"]
[Round "3.8"]
[White "Bosiocic, Marin"]
[Black "Collutiis, Duilio"]
[Result "*"]
[ECO "B47"]
[WhiteElo "2590"]
[BlackElo "2415"]
[Annotator "ChessBase"]
[PlyCount "111"]
[EventDate "2018.08.10"]
[EventType "swiss"]
[EventCountry "ITA"]
[SourceTitle "playchess.com"]
[Source "ChessBase"]
[SourceQuality "1"]
[TimeControl "5400+30"]

1. e4 {[%emt 0:00:30]} c5 {[%emt 0:00:30]} 2. Nf3 {[%emt 0:00:00]} e6 {[%emt 0:00:30]} 3. d4 {[%emt 0:00:00]} cxd4 {[%emt 0:00:00]} 4. Nxd4 {[%emt 0:00:00]} Nc6 {[%emt 0:00:00]} 5. Nc3 {[%emt 0:00:00]} Qc7 {[%emt 0:00:30]} 6. Be2 {[%emt 0:00:30]} a6 {[%emt 0:00:30]} 7. a3 {[%emt 0:00:00]} b5 {[%emt 0:00:30]} 8. Nxc6 {[%emt 0:00:00]} Qxc6 {[%emt 0:02:30]} 9. Bf3 {[%emt 0:00:30]} Bb7 {[%emt 0:03:30]} 10. Be3 {[%emt 0:06:30]} Ne7 {[%emt 0:05:30]} 11. O-O {[%emt 0:00:30]} Ng6 {[%emt 0:02:30]} 12. Qd4 {[%emt 0:05:30]} Qc7 {[%emt 0:07:30]} 13. a4 {[%emt 0:04:30]} b4 {[%emt 0:03:30]} 14. Na2 {[%emt 0:00:30]} Ne5 {[%emt 0:02:30]} 15. Nxb4 {[%emt 0:14:30]} Nxf3+ {[%emt 0:03:30]} 16. gxf3 {[%emt 0:00:30]} Bd6 {[%emt 0:04:30]} 17. Nd3 {[%emt 0:01:30]} O-O {[%emt 0:02:30]} 18. f4 {[%emt 0:04:30]} f5 {[%emt 0:00:30]} 19. e5 {[%emt 0:00:30]} Be7 {[%emt 0:00:30]} 20. Qb6 {[%emt 0:04:30]} Qc8 {[%emt 0:03:30]} 21. Bc5 {[%emt 0:02:30]} Bd8 {[%emt 0:04:30]} 22. Qb4 {[%emt 0:03:30]} Rf7 {[%emt 0:00:30]} 23. f3 {[%emt 0:02:30]} h6 {[%emt 0:01:30]} 24. Kf2 {[%emt 0:02:30]} Qc6 {[%emt 0:07:30]} 25. Ke3 {[%emt 0:00:30]} Rc8 {[%emt 0:01:30]} 26. Ra3 {[%emt 0:06:30]} g5 {[%emt 0:12:30]} 27. Rc3 {[%emt 0:06:30]} a5 {[%emt 0:03:30]} 28. Qb5 {[%emt 0:01:30]} Ba6 {[%emt 0:05:30]} 29. Qxc6 {[%emt 0:00:30]} Rxc6 {[%emt 0:00:30]} 30. Rg1 {[%emt 0:04:30]} Rg7 {[%emt 0:00:00]} 31. Kd2 {[%emt 0:01:30]} Rc8 {[%emt 0:03:00]} 32. Be3 {[%emt 0:05:30]} Rxc3 {[%emt 0:00:30]} 33. Kxc3 {[%emt 0:00:00]} Bb7 {[%emt 0:00:00]} 34. fxg5 {[%emt 0:05:20]} hxg5 {[%emt 0:00:00]} 35. f4 {[%emt 0:00:03]} g4 {[%emt 0:00:30]} 36. Bf2 {[%emt 0:00:13]} Rh7 {[%emt 0:01:33]} 37. Bg3 {[%emt 0:00:05]} Bc6 {[%emt 0:00:27]} 38. b4 {[%emt 0:02:37]} axb4+ {[%emt 0:02:41]} 39. Nxb4 {[%emt 0:00:06]} Ba5 {[%emt 0:00:06]} 40. Kb3 {[%emt 0:00:06]} Bf3 {[%emt 0:00:51]} 41. Kc4 {[%emt 0:03:55]} Kf7 {[%emt 0:01:51]} 42. Kb5 {[%emt 0:00:10]} Bxb4 {[%emt 0:01:03]} 43. Kxb4 {[%emt 0:00:33]} Ke7 {[%emt 0:00:16]} 44. a5 {[%emt 0:02:09]} Rh8 {[%emt 0:02:34]} 45. c4 {[%emt 0:03:08]} Kd8 {[%emt 0:02:31]} 46. a6 {[%emt 0:01:50]} Kc7 {[%emt 0:00:40]} 47. Kc5 {[%emt 0:00:59]} Ra8 {[%emt 0:01:28]} 48. Ra1 {[%emt 0:01:06]} Bb7 {[%emt 0:00:10]} 49. a7 {[%emt 0:00:40]} Bc6 {[%emt 0:01:34]} 50. Bf2 {[%emt 0:01:22]} Rh8 {[%emt 0:00:49]} 51. Bg1 {[%emt 0:00:33]} Ba8 {[%emt 0:01:34]} 52. Rb1 {[%emt 0:01:09]} Bb7 {[%emt 0:01:43]} 53. Rb2 {[%emt 0:05:27]} Rh3 {[%emt 0:02:14]} 54. Kb4 {[%emt 0:01:23]} Rf3 {[%emt 0:01:45]} 55. Bc5 {[%emt 0:00:19]} Bc6 {[%emt 0:01:29]} 56. Ka5 {[%emt 0:01:09]} *